fUST/lending_fUST_20250628
["ID","MTS","AMOUNT","RATE_DAILY","PERIOD"]
[368169223,1751046641774,-460.0,0.00019178,2]
[368169224,1751046641783,-460.0,0.00019178,2]
[368169225,1751046641793,-460.0,0.00019178,2]
[368169226,1751046641802,-460.0,0.00019178,2]
[368169227,1751046641814,-1582.32,0.00019178,2]
[368169228,1751046641823,-460.0,0.00019178,2]
[368169229,1751046641833,-460.0,0.00019178,2]
[368169230,1751046641844,-460.0,0.00019178,2]
[368169231,1751046641853,-5244.0,0.00019178,2]
[368169232,1751046641864,-460.0,0.00019178,2]
[368169233,1751046641873,-460.0,0.00019178,2]
[368169234,1751046641882,-460.0,0.00019178,2]
[368169235,1751046641893,-460.0,0.00019178,2]
[368169236,1751046641903,-603.45203309,0.00019178,2]
[368169237,1751046641912,-460.0,0.00019178,2]
[368169238,1751046641921,-460.0,0.00019178,2]
[368169239,1751046641931,-460.0,0.00019178,2]
[368169240,1751046641940,-463.07479237,0.00019178,2]
[368169241,1751046641950,-321.92993338,0.00019178,2]
[368169242,1751046641959,-460.0,0.00019178,2]
[368169243,1751046641968,-460.0,0.00019178,2]
[368169244,1751046641978,-460.0,0.00019178,2]
[368169245,1751046641987,-681.07,0.00019178,2]
[368169246,1751046641997,-460.0,0.00019178,2]
[368169247,1751046642006,-460.0,0.00019178,2]
[368169248,1751046642015,-460.0,0.00019178,2]
[368169249,1751046642025,-246.30384673,0.00019178,2]
[368169250,1751046642034,-460.0,0.00019178,2]
[368169251,1751046642043,-598.8,0.00019178,2]
[368169252,1751046642053,-460.0,0.00019178,2]
[368169253,1751046642065,-1338.12,0.00019178,2]
[368169254,1751046642074,-3684.07,0.00019178,2]
[368169255,1751046642083,-683.38,0.00019178,2]
[368169256,1751046642092,-460.0,0.00019178,2]
[368169257,1751046642102,-460.0,0.00019178,2]
[368169258,1751046642110,-460.0,0.00019178,2]
[368169259,1751046642120,-648.72,0.00019178,2]
[368169260,1751046642130,-962.44,0.00019178,2]
[368169261,1751046642139,-463.59804792,0.00019178,2]
[368169262,1751046642148,-460.0,0.00019178,2]
[368169263,1751046642157,-460.0,0.00019178,2]
[368169264,1751046642167,-460.0,0.00019178,2]
[368169265,1751046642177,-460.0,0.00019178,2]
[368169266,1751046642186,-1112.38,0.00019178,2]
[368169267,1751046642196,-460.0,0.00019178,2]
[368169268,1751046642205,-460.0,0.00019178,2]
[368169269,1751046642214,-460.0,0.00019178,2]
[368169270,1751046642223,-4582.07,0.00019178,2]
[368169271,1751046642233,-460.0,0.00019178,2]
[368169272,1751046642242,-460.0,0.00019178,2]
[368169274,1751046642252,-567.65,0.00019178,2]
[368169275,1751046642261,-1019.81,0.00019178,2]
[368169276,1751046642271,-460.87804234,0.00019178,2]
[368169277,1751046642280,-2929.41,0.00019178,2]
[368169278,1751046642290,-460.0,0.00019178,2]
[368169279,1751046642299,-460.0,0.00019178,2]
[368169280,1751046642310,-2524.19,0.00019178,2]
[368169281,1751046642319,-460.0,0.00019178,2]
[368169282,1751046642328,-460.0,0.00019178,2]
[368169283,1751046642337,-1858.88,0.00019178,2]
[368169285,1751046642346,-591.83,0.00019178,2]
[368169288,1751046642355,-500.0,0.00019178,2]
[368169290,1751046642364,-199.10625364,0.00019425,2]
[368169292,1751046642374,-151.0,0.00019425,2]
[368169294,1751046642383,-151.0,0.00019425,2]
[368169296,1751046642392,-151.0,0.00019425,2]
[368169297,1751046642402,-151.0,0.00019425,2]
[368169298,1751046642412,-151.0,0.00019425,2]
[368169299,1751046642422,-151.0,0.00019425,2]
[368169300,1751046642431,-151.0,0.00019425,2]
[368169301,1751046642440,-151.0,0.00019425,2]
[368169302,1751046642450,-151.0,0.00019425,2]
[368169303,1751046642459,-151.0,0.00019425,2]
[368169304,1751046642468,-151.0,0.00019425,2]
[368169305,1751046642478,-151.0,0.00019425,2]
[368169306,1751046642487,-151.0,0.00019425,2]
[368169307,1751046642496,-460.0,0.00019452,2]
[368169308,1751046642505,-460.0,0.00019452,2]
[368169309,1751046642514,-460.0,0.00019452,2]
[368169310,1751046642523,-465.28598502,0.00019452,2]
[368169311,1751046642533,-460.0,0.00019452,2]
[368169312,1751046642542,-460.0,0.00019452,2]
[368169313,1751046642551,-155.03931805,0.00019452,2]
[368169314,1751046642561,-460.0,0.00019452,2]
[368169315,1751046642570,-460.0,0.00019452,2]
[368169316,1751046642579,-460.0,0.00019452,2]
[368169317,1751046642589,-460.0,0.00019452,2]
[368169318,1751046642598,-460.0,0.00019452,2]
[368169319,1751046642607,-460.0,0.00019452,2]
[368169320,1751046642617,-460.0,0.00019452,2]
[368169321,1751046642626,-460.0,0.00019452,2]
[368169322,1751046642636,-349.49708836,0.00019452,2]
[368169323,1751046642645,-460.0,0.00019452,2]
[368169324,1751046642655,-460.0,0.00019452,2]
[368169325,1751046642667,-460.0,0.00019452,2]
[368169326,1751046642676,-460.0,0.00019452,2]
[368169327,1751046642685,-460.0,0.00019452,2]
[368169328,1751046642694,-413.65,0.00019452,2]
[368169329,1751046642704,-460.0,0.00019452,2]
[368169330,1751046642714,-460.0,0.00019452,2]
[368169331,1751046642723,-460.0,0.00019452,2]
[368169332,1751046642732,-460.0,0.00019452,2]
[368169333,1751046642743,-460.0,0.00019452,2]
[368169334,1751046642754,-262.37141083,0.00019452,2]
[368169336,1751046642763,-479.16124575,0.00019452,2]
[368169338,1751046642772,-460.0,0.00019452,2]
[368169340,1751046642782,-460.0,0.00019452,2]
[368169342,1751046642791,-622.33,0.00019452,2]
[368169344,1751046642801,-460.0,0.00019452,2]
[368169346,1751046642812,-274.57,0.00019452,2]
[368169348,1751046642821,-460.0,0.00019452,2]
[368169350,1751046642831,-460.0,0.00019452,2]
[368169352,1751046642840,-163.47,0.00019452,2]
[368169354,1751046642849,-264.12,0.00019452,2]
[368169356,1751046642859,-460.0,0.00019452,2]
[368169358,1751046642868,-460.0,0.00019452,2]
[368169360,1751046642878,-460.0,0.00019452,2]
[368169362,1751046642888,-460.0,0.00019452,2]
[368169364,1751046642898,-460.0,0.00019452,2]
[368169366,1751046642907,-460.0,0.00019452,2]
[368169368,1751046642916,-460.0,0.00019452,2]
[368169370,1751046642926,-657.78,0.00019452,2]
[368169372,1751046642935,-496.85,0.00019452,2]
[368169374,1751046642945,-460.0,0.00019452,2]
[368169375,1751046642954,-237.66,0.00019452,2]
[368169377,1751046642963,-460.0,0.00019452,2]
[368169379,1751046642973,-460.0,0.00019452,2]
[368169381,1751046642983,-460.0,0.00019452,2]
[368169383,1751046642993,-460.0,0.00019452,2]
[368169386,1751046643002,-460.0,0.00019452,2]
[368169388,1751046643012,-568.55,0.00019452,2]
[368169390,1751046643022,-307.42,0.00019452,2]
[368169392,1751046643031,-460.0,0.00019452,2]
[368169394,1751046643041,-460.0,0.00019452,2]
[368169396,1751046643051,-460.0,0.00019452,2]
[368169398,1751046643062,-460.0,0.00019452,2]
[368169399,1751046643073,-460.0,0.00019452,2]
[368169401,1751046643083,-460.0,0.00019452,2]
[368169403,1751046643093,-460.0,0.00019452,2]
[368169405,1751046643102,-1054.09,0.00019452,2]
[368169407,1751046643112,-460.0,0.00019452,2]
[368169409,1751046643122,-504.12,0.00019452,2]
[368169412,1751046643133,-517.12,0.00019452,2]
[368169413,1751046643143,-514.81,0.00019452,2]
[368169415,1751046643153,-1281.15,0.00019452,2]
[368169417,1751046643162,-3619.92,0.00019452,2]
[368169419,1751046643174,-460.0,0.00019452,2]
[368169421,1751046643184,-460.0,0.00019452,2]
[368169422,1751046643193,-4046.67,0.00019452,2]
[368169423,1751046643202,-460.0,0.00019452,2]
[368169424,1751046643211,-460.0,0.00019452,2]
[368169425,1751046643220,-460.0,0.00019452,2]
[368169426,1751046643229,-1459.3,0.00019452,2]
[368169427,1751046643239,-460.0,0.00019452,2]
[368169428,1751046643248,-650.14,0.00019452,2]
[368169429,1751046643258,-460.0,0.00019452,2]
[368169430,1751046643267,-460.0,0.00019452,2]
[368169431,1751046643276,-1333.17,0.00019452,2]
[368169432,1751046643285,-460.0,0.00019452,2]
[368169433,1751046643295,-460.0,0.00019452,2]
[368169434,1751046643304,-479.97,0.00019452,2]
[368169435,1751046643316,-460.0,0.00019452,2]
[368169436,1751046643325,-460.0,0.00019452,2]
[368169437,1751046643335,-2029.99,0.00019452,2]
[368169438,1751046643345,-460.0,0.00019452,2]
[368169439,1751046643354,-460.0,0.00019452,2]
[368169440,1751046643363,-524.0,0.00019452,2]
[368169441,1751046643373,-460.0,0.00019452,2]
[368169442,1751046643382,-999.78,0.00019452,2]
[368169443,1751046643391,-524.5,0.00019452,2]
[368169444,1751046643402,-460.0,0.00019452,2]
[368169445,1751046643411,-1574.26,0.00019452,2]
[368169446,1751046643421,-460.0,0.00019452,2]
[368169447,1751046643430,-477.58,0.00019452,2]
[368169448,1751046643441,-768.69,0.00019452,2]
[368169449,1751046643450,-1267.96,0.00019452,2]
[368169450,1751046643460,-460.0,0.00019452,2]
[368169451,1751046643470,-460.0,0.00019452,2]
[368169452,1751046643479,-492.55,0.00019452,2]
[368169453,1751046643489,-489.44,0.00019452,2]
[368169454,1751046643499,-583.94,0.00019452,2]
[368169455,1751046643508,-460.0,0.00019452,2]
[368169456,1751046643517,-586.75676471,0.00019452,2]
[368169457,1751046643526,-460.0,0.00019452,2]
[368169458,1751046643536,-460.0,0.00019452,2]
[368169459,1751046643545,-460.0,0.00019452,2]
[368169460,1751046643554,-604.2,0.00019452,2]
[368169461,1751046643565,-460.0,0.00019452,2]
[368169462,1751046643574,-460.0,0.00019452,2]
[368169463,1751046643584,-1861.84,0.00019452,2]
[368169464,1751046643593,-774.45,0.00019452,2]
[368169465,1751046643603,-520.38,0.00019452,2]
[368169466,1751046643613,-663.49,0.00019452,2]
[368169467,1751046643721,-555.19,0.00019452,2]
[368169468,1751046643731,-2959.28,0.00019452,2]
[368169469,1751046643742,-460.0,0.00019452,2]
[368169470,1751046643752,-460.0,0.00019452,2]
[368169471,1751046643762,-1582.32,0.00019452,2]
[368169472,1751046643772,-460.0,0.00019452,2]
[368169473,1751046643781,-460.0,0.00019452,2]
[368169474,1751046643790,-460.0,0.00019452,2]
[368169475,1751046643800,-5244.0,0.00019452,2]
[368169476,1751046643810,-460.0,0.00019452,2]
[368169477,1751046643820,-586.97409495,0.00019452,2]
[368169478,1751046643829,-460.0,0.00019452,2]
[368169479,1751046643838,-469.16716367,0.00019452,2]
[368169480,1751046643848,-681.07,0.00019452,2]
[368169481,1751046643857,-460.0,0.00019452,2]
[368169482,1751046643867,-460.0,0.00019452,2]
[368169483,1751046643876,-598.8,0.00019452,2]
[368169484,1751046643886,-460.0,0.00019452,2]
[368169485,1751046643895,-1338.12,0.00019452,2]
[368169486,1751046643905,-3684.07,0.00019452,2]
[368169487,1751046643914,-683.38,0.00019452,2]
[368169488,1751046643923,-460.0,0.00019452,2]
[368169489,1751046643932,-648.72,0.00019452,2]
[368169490,1751046643942,-962.44,0.00019452,2]
[368169491,1751046643951,-460.0,0.00019452,2]
[368169492,1751046643960,-460.0,0.00019452,2]
[368169493,1751046643970,-460.0,0.00019452,2]
[368169494,1751046643979,-1112.38,0.00019452,2]
[368169495,1751046643989,-460.0,0.00019452,2]
[368169496,1751046643999,-460.0,0.00019452,2]
[368169497,1751046644008,-4582.07,0.00019452,2]
[368169498,1751046644017,-460.0,0.00019452,2]
[368169499,1751046644027,-567.65,0.00019452,2]
[368169500,1751046644036,-1019.81,0.00019452,2]
[368169501,1751046644046,-2929.41,0.00019452,2]
[368169502,1751046644055,-2524.19,0.00019452,2]
[368169503,1751046644065,-460.0,0.00019452,2]
[368169504,1751046644075,-1858.88,0.00019452,2]
[368169505,1751046644084,-591.83,0.00019452,2]
[368169506,1751046644093,-151.0,0.00019452,2]
[368169507,1751046644103,-151.0,0.00019452,2]
[368169508,1751046644113,-151.0,0.00019452,2]
[368169509,1751046644122,-237.02162087,0.00019452,2]
[368169510,1751046644132,-151.0,0.00019452,2]
[368169511,1751046644141,-151.0,0.00019452,2]
[368169512,1751046644151,-151.0,0.00019452,2]
[368169513,1751046644160,-458.91259767,0.00019473,2]
[368169514,1751046644169,-500.0,0.00019473,2]
[368169515,1751046644179,-500.0,0.00019473,2]
[368169516,1751046644187,-500.0,0.00019473,2]
[368169517,1751046644197,-500.0,0.00019473,2]
[368169518,1751046644206,-151.0,0.0001948,2]
[368169519,1751046644215,-151.0,0.0001948,2]
[368169520,1751046644225,-7046.29524458,0.000195,2]
[368169521,1751046644234,-7046.29524436,0.000195,2]
[368169522,1751046644243,-7046.29524436,0.000195,2]
[368169523,1751046644253,-151.0,0.00019507,2]
[368169524,1751046644263,-151.0,0.00019507,2]
[368169525,1751046644273,-151.0,0.00019535,2]
[368169526,1751046644282,-151.0,0.00019535,2]
[368169527,1751046644291,-245.0,0.00019562,2]
[368169528,1751046644301,-245.0,0.00019562,2]
[368169529,1751046644312,-7046.29524436,0.00019624,2]
[368169530,1751046644321,-1644.33996854,0.00019666,2]
[368169531,1751046644331,-630.18000815,0.00019721,2]
[368169532,1751046644341,-500.0,0.00019721,2]
[368169533,1751046644351,-1000.0,0.00019721,2]
[368169534,1751046644361,-1000.0,0.00019721,2]
[368169535,1751046644370,-703.1307375,0.00019721,2]
[368169536,1751046644380,-436.29805676,0.00019721,2]
[368169537,1751046644390,-1000.0,0.00019721,2]
[368169538,1751046644400,-500.0,0.00019721,2]
[368169539,1751046644410,-1000.0,0.00019721,2]
[368169540,1751046644420,-1000.0,0.00019721,2]
[368169541,1751046644429,-538.25510388,0.00019721,2]
[368169542,1751046644439,-500.0,0.00019721,2]
[368169543,1751046644449,-500.0,0.00019721,2]
[368169544,1751046644459,-460.0,0.00019726,2]
[368169545,1751046644468,-414.1944289,0.00019726,2]
[368169546,1751046644478,-460.0,0.00019726,2]
[368169547,1751046644487,-460.0,0.00019726,2]
[368169548,1751046644497,-390.91690971,0.00019726,2]
[368169549,1751046644507,-460.0,0.00019726,2]
[368169550,1751046644516,-460.0,0.00019726,2]
[368169551,1751046644526,-460.0,0.00019726,2]
[368169552,1751046644536,-460.0,0.00019726,2]
[368169553,1751046644546,-460.0,0.00019726,2]
[368169554,1751046644555,-460.0,0.00019726,2]
[368169555,1751046644566,-194.46822082,0.00019726,2]
[368169556,1751046644575,-460.0,0.00019726,2]
[368169557,1751046644585,-573.06,0.00019726,2]
[368169558,1751046644595,-460.0,0.00019726,2]
[368169559,1751046644604,-460.0,0.00019726,2]
[368169560,1751046644616,-460.0,0.00019726,2]
[368169561,1751046644627,-460.0,0.00019726,2]
[368169562,1751046644636,-460.0,0.00019726,2]
[368169563,1751046644646,-355.44777927,0.00019726,2]
[368169564,1751046644656,-622.33,0.00019726,2]
[368169565,1751046644669,-460.0,0.00019726,2]
[368169566,1751046644679,-353.6165505,0.00019726,2]
[368169567,1751046644689,-460.0,0.00019726,2]
[368169568,1751046644699,-460.0,0.00019726,2]
[368169569,1751046644709,-460.0,0.00019726,2]
[368169570,1751046644719,-460.0,0.00019726,2]
[368169571,1751046644729,-460.0,0.00019726,2]
[368169572,1751046644741,-460.0,0.00019726,2]
[368169573,1751046644751,-460.0,0.00019726,2]
[368169574,1751046644761,-460.0,0.00019726,2]
[368169575,1751046644771,-657.78,0.00019726,2]
[368169576,1751046644781,-496.85,0.00019726,2]
[368169577,1751046644790,-460.0,0.00019726,2]
[368169578,1751046644800,-460.0,0.00019726,2]
[368169579,1751046644811,-460.0,0.00019726,2]
[368169580,1751046644820,-460.0,0.00019726,2]
[368169581,1751046644830,-460.0,0.00019726,2]
[368169582,1751046644839,-219.51,0.00019726,2]
[368169583,1751046644848,-568.55,0.00019726,2]
[368169584,1751046644858,-460.0,0.00019726,2]
[368169585,1751046644867,-298.57962969,0.00019726,2]
[368169586,1751046644877,-460.0,0.00019726,2]
[368169587,1751046644886,-460.0,0.00019726,2]
[368169588,1751046644895,-214.95,0.00019726,2]
[368169589,1751046644906,-460.0,0.00019726,2]
[368169590,1751046644916,-1054.09,0.00019726,2]
[368169591,1751046644925,-460.0,0.00019726,2]
[368169592,1751046644935,-504.12,0.00019726,2]
[368169593,1751046644944,-1281.15,0.00019726,2]
[368169594,1751046644953,-3619.92,0.00019726,2]
[368169595,1751046644963,-460.0,0.00019726,2]
[368169596,1751046644972,-460.0,0.00019726,2]
[368169597,1751046644982,-4046.67,0.00019726,2]
[368169598,1751046644991,-460.0,0.00019726,2]
[368169599,1751046645001,-461.01546838,0.00019726,2]
[368169600,1751046645010,-1459.3,0.00019726,2]
[368169601,1751046645019,-650.14,0.00019726,2]
[368169602,1751046645029,-460.0,0.00019726,2]
[368169603,1751046645038,-460.0,0.00019726,2]
[368169604,1751046645048,-1333.17,0.00019726,2]
[368169605,1751046645060,-460.0,0.00019726,2]
[368169606,1751046645069,-460.0,0.00019726,2]
[368169607,1751046645079,-479.97,0.00019726,2]
[368169608,1751046645089,-460.0,0.00019726,2]
[368169609,1751046645098,-460.0,0.00019726,2]
[368169610,1751046645108,-2029.99,0.00019726,2]
[368169611,1751046645117,-177.11346123,0.00019726,2]
[368169612,1751046645127,-460.0,0.00019726,2]
[368169613,1751046645137,-524.0,0.00019726,2]
[368169614,1751046645146,-460.0,0.00019726,2]
[368169615,1751046645155,-999.78,0.00019726,2]
[368169617,1751046645164,-524.5,0.00019726,2]
[368169618,1751046645173,-460.0,0.00019726,2]
[368169619,1751046645183,-460.0,0.00019726,2]
[368169620,1751046645192,-1574.26,0.00019726,2]
[368169621,1751046645201,-477.58,0.00019726,2]
[368169622,1751046645211,-768.69,0.00019726,2]
[368169623,1751046645220,-1267.96,0.00019726,2]
[368169624,1751046645230,-460.0,0.00019726,2]
[368169625,1751046645239,-492.55,0.00019726,2]
[368169626,1751046645249,-489.44,0.00019726,2]
[368169627,1751046645259,-583.94,0.00019726,2]
[368169628,1751046645268,-460.0,0.00019726,2]
[368169629,1751046645277,-460.0,0.00019726,2]
[368169630,1751046645286,-460.0,0.00019726,2]
[368169631,1751046645295,-604.2,0.00019726,2]
[368169632,1751046645305,-460.0,0.00019726,2]
[368169633,1751046645315,-460.0,0.00019726,2]
[368169634,1751046645325,-1861.84,0.00019726,2]
[368169635,1751046645335,-774.45,0.00019726,2]
[368169636,1751046645344,-520.38,0.00019726,2]
[368169637,1751046645354,-663.49,0.00019726,2]
[368169638,1751046645364,-555.19,0.00019726,2]
[368169640,1751046645373,-2959.28,0.00019726,2]
[368169642,1751046645382,-460.0,0.00019726,2]
[368169643,1751046645392,-460.0,0.00019726,2]
[368169644,1751046645401,-1582.32,0.00019726,2]
[368169645,1751046645411,-460.0,0.00019726,2]
[368169646,1751046645421,-478.44,0.00019726,2]
[368169647,1751046645431,-460.0,0.00019726,2]
[368169648,1751046645440,-5244.0,0.00019726,2]
[368169649,1751046645450,-460.0,0.00019726,2]
[368169650,1751046645459,-460.0,0.00019726,2]
[368169651,1751046645468,-681.07,0.00019726,2]
[368169653,1751046645478,-460.0,0.00019726,2]
[368169654,1751046645487,-598.8,0.00019726,2]
[368169656,1751046645496,-460.0,0.00019726,2]
[368169658,1751046645506,-3684.07,0.00019726,2]
[368169660,1751046645515,-683.38,0.00019726,2]
[368169662,1751046645524,-1338.12,0.00019726,2]
[368169664,1751046645534,-460.0,0.00019726,2]
[368169666,1751046645544,-648.72,0.00019726,2]
[368169668,1751046645553,-962.44,0.00019726,2]
[368169670,1751046645562,-562.78624203,0.00019726,2]
[368169672,1751046645571,-460.0,0.00019726,2]
[368169674,1751046645581,-460.0,0.00019726,2]
[368169676,1751046645590,-1112.38,0.00019726,2]
[368169678,1751046645599,-460.0,0.00019726,2]
[368169680,1751046645608,-460.0,0.00019726,2]
[368169682,1751046645617,-4582.07,0.00019726,2]
[368169684,1751046645627,-460.0,0.00019726,2]
[368169686,1751046645637,-567.65,0.00019726,2]
[368169688,1751046645646,-1019.81,0.00019726,2]
[368169690,1751046645656,-2929.41,0.00019726,2]
[368169691,1751046645669,-2524.19,0.00019726,2]
[368169693,1751046645678,-460.0,0.00019726,2]
[368169695,1751046645687,-1858.88,0.00019726,2]
[368169697,1751046645696,-591.83,0.00019726,2]
[368169699,1751046645706,-500.0,0.00019781,2]
[368169701,1751046645716,-500.0,0.00019789,2]
[368169703,1751046645726,-473.11563997,0.00019789,2]
[368169705,1751046645736,-500.0,0.000198,2]
[368169707,1751046645745,-7046.29524436,0.00019866,2]
[368169709,1751046645755,-467.87,0.0002,2]
[368169710,1751046645765,-460.0,0.0002,2]
[368169711,1751046645774,-460.0,0.0002,2]
[368169712,1751046645784,-460.0,0.0002,2]
[368169713,1751046645793,-460.0,0.0002,2]
[368169714,1751046645803,-460.0,0.0002,2]
[368169715,1751046645812,-460.0,0.0002,2]
[368169716,1751046645821,-506.46,0.0002,2]
[368169717,1751046645831,-460.0,0.0002,2]
[368169718,1751046645936,-347.38632927,0.0002,2]
[368169719,1751046645947,-460.0,0.0002,2]
[368169720,1751046645956,-622.33,0.0002,2]
[368169721,1751046645966,-460.0,0.0002,2]
[368169722,1751046645975,-460.0,0.0002,2]
[368169723,1751046645984,-460.0,0.0002,2]
[368169724,1751046645994,-460.0,0.0002,2]
[368169725,1751046646003,-460.0,0.0002,2]
[368169726,1751046646013,-460.0,0.0002,2]
[368169727,1751046646022,-316.06441967,0.0002,2]
[368169728,1751046646031,-460.0,0.0002,2]
[368169729,1751046646040,-657.78,0.0002,2]
[368169730,1751046646051,-496.85,0.0002,2]
[368169731,1751046646064,-460.0,0.0002,2]
[368169732,1751046646073,-460.0,0.0002,2]
[368169733,1751046646083,-460.0,0.0002,2]
[368169734,1751046646092,-379.19118822,0.0002,2]
[368169735,1751046646101,-568.55,0.0002,2]
[368169736,1751046646110,-460.0,0.0002,2]
[368169737,1751046646119,-460.0,0.0002,2]
[368169738,1751046646128,-460.0,0.0002,2]
[368169739,1751046646137,-460.0,0.0002,2]
[368169740,1751046646146,-1054.09,0.0002,2]
[368169741,1751046646155,-460.0,0.0002,2]
[368169742,1751046646164,-504.12,0.0002,2]
[368169743,1751046646174,-1281.15,0.0002,2]
[368169744,1751046646183,-3619.92,0.0002,2]
[368169745,1751046646192,-179.26800554,0.0002,2]
[368169746,1751046646201,-460.0,0.0002,2]
[368169747,1751046646210,-4046.67,0.0002,2]
[368169748,1751046646219,-460.0,0.0002,2]
[368169749,1751046646228,-1459.3,0.0002,2]
[368169750,1751046646238,-650.14,0.0002,2]
[368169751,1751046646247,-404.15,0.0002,2]
[368169752,1751046646257,-460.0,0.0002,2]
[368169753,1751046646266,-1333.17,0.0002,2]
[368169754,1751046646275,-460.0,0.0002,2]
[368169755,1751046646284,-460.0,0.0002,2]
[368169756,1751046646293,-479.97,0.0002,2]
[368169757,1751046646303,-460.0,0.0002,2]
[368169758,1751046646314,-460.0,0.0002,2]
[368169759,1751046646324,-2029.99,0.0002,2]
[368169760,1751046646333,-538.52,0.0002,2]
[368169761,1751046646342,-524.0,0.0002,2]
[368169762,1751046646352,-460.0,0.0002,2]
[368169763,1751046646361,-999.78,0.0002,2]
[368169764,1751046646371,-524.5,0.0002,2]
[368169765,1751046646381,-460.0,0.0002,2]
[368169766,1751046646391,-460.0,0.0002,2]
[368169767,1751046646402,-1574.26,0.0002,2]
[368169768,1751046646412,-477.58,0.0002,2]
[368169769,1751046646421,-768.69,0.0002,2]
[368169770,1751046646431,-1267.96,0.0002,2]
[368169771,1751046646440,-460.0,0.0002,2]
[368169772,1751046646450,-492.55,0.0002,2]
[368169773,1751046646460,-489.44,0.0002,2]
[368169774,1751046646470,-583.94,0.0002,2]
[368169775,1751046646479,-460.0,0.0002,2]
[368169776,1751046646489,-460.0,0.0002,2]
[368169777,1751046646499,-604.2,0.0002,2]
[368169778,1751046646508,-460.0,0.0002,2]
[368169779,1751046646518,-460.0,0.0002,2]
[368169780,1751046646528,-1861.84,0.0002,2]
[368169781,1751046646537,-774.45,0.0002,2]
[368169782,1751046646547,-520.38,0.0002,2]
[368169783,1751046646557,-663.49,0.0002,2]
[368169784,1751046646568,-555.19,0.0002,2]
[368169785,1751046646577,-2959.28,0.0002,2]
[368169786,1751046646587,-460.0,0.0002,2]
[368169787,1751046646596,-460.0,0.0002,2]
[368169788,1751046646607,-1582.32,0.0002,2]
[368169789,1751046646617,-460.0,0.0002,2]
[368169790,1751046646627,-460.0,0.0002,2]
[368169791,1751046646638,-5244.0,0.0002,2]
[368169792,1751046646648,-460.0,0.0002,2]
[368169793,1751046646660,-460.0,0.0002,2]
[368169794,1751046646672,-681.07,0.0002,2]
[368169795,1751046646681,-460.0,0.0002,2]
[368169796,1751046646691,-598.8,0.0002,2]
[368169797,1751046646701,-460.0,0.0002,2]
[368169798,1751046646711,-3684.07,0.0002,2]
[368169799,1751046646720,-683.38,0.0002,2]
[368169800,1751046646730,-1338.12,0.0002,2]
[368169801,1751046646741,-460.0,0.0002,2]
[368169802,1751046646750,-648.72,0.0002,2]
[368169803,1751046646760,-962.44,0.0002,2]
[368169804,1751046646770,-460.0,0.0002,2]